[Event "*** Titled Tuesday Blitz"]
[Site "Chess.com"]
[Date "2019.03.05"]
[Round "5"]
[White "MFBerna"]
[Black "fish7728"]
[Result "1/2-1/2"]
[WhiteElo "2407"]
[BlackElo "2250"]
[TimeControl "180+2"]
[EndTime "14:15:22 PST"]
[Termination "Game drawn - insufficient material"]

1. e4 {[%clk 0:03:01.9]} 1... c5 {[%clk 0:03:00.5]} 2. Nf3 {[%clk 0:03:02.9]}
2... Nc6 {[%clk 0:03:01.3]} 3. d4 {[%clk 0:03:04.2]} 3... cxd4 {[%clk
0:03:01.1]} 4. Nxd4 {[%clk 0:03:05.7]} 4... Nf6 {[%clk 0:03:02.2]} 5. Nc3 {[%clk
0:03:07]} 5... e5 {[%clk 0:03:03]} 6. Ndb5 {[%clk 0:03:07.4]} 6... d6 {[%clk
0:03:03.3]} 7. Bg5 {[%clk 0:03:07.9]} 7... a6 {[%clk 0:03:03.9]} 8. Na3 {[%clk
0:03:08.6]} 8... b5 {[%clk 0:03:04.2]} 9. Nd5 {[%clk 0:03:09.3]} 9... Be7 {[%clk
0:03:04.6]} 10. Bxf6 {[%clk 0:03:09.9]} 10... Bxf6 {[%clk 0:03:04.3]} 11. c4
{[%clk 0:03:11.2]} 11... b4 {[%clk 0:03:01.9]} 12. Nc2 {[%clk 0:03:11.8]} 12...
a5 {[%clk 0:03:02.4]} 13. g3 {[%clk 0:03:11.6]} 13... O-O {[%clk 0:02:56.8]} 14.
h4 {[%clk 0:03:11.6]} 14... Be6 {[%clk 0:02:52.9]} 15. Bh3 {[%clk 0:03:11.5]}
15... Ne7 {[%clk 0:02:47.8]} 16. Kf1 {[%clk 0:02:53.2]} 16... Nxd5 {[%clk
0:02:44.3]} 17. cxd5 {[%clk 0:02:44.7]} 17... Bxh3+ {[%clk 0:02:41.6]} 18. Rxh3
{[%clk 0:02:46.6]} 18... Be7 {[%clk 0:02:36.3]} 19. Ne3 {[%clk 0:02:42.9]} 19...
Qd7 {[%clk 0:02:26.4]} 20. Kg2 {[%clk 0:02:42.3]} 20... Bd8 {[%clk 0:02:25.7]}
21. b3 {[%clk 0:02:27.7]} 21... Bb6 {[%clk 0:02:25.2]} 22. Nc4 {[%clk
0:02:27.5]} 22... Bc5 {[%clk 0:02:17.3]} 23. Rc1 {[%clk 0:02:25.8]} 23... f5
{[%clk 0:02:16.3]} 24. Qe2 {[%clk 0:02:07.7]} 24... fxe4 {[%clk 0:02:13]} 25.
Rf1 {[%clk 0:01:57.5]} 25... Qf5 {[%clk 0:01:56.8]} 26. Nd2 {[%clk 0:01:45.2]}
26... e3 {[%clk 0:01:43.2]} 27. fxe3 {[%clk 0:01:47.1]} 27... Qc2 {[%clk
0:01:38.7]} 28. Rhh1 {[%clk 0:01:41.6]} 28... a4 {[%clk 0:01:37.6]} 29. bxa4
{[%clk 0:01:34.8]} 29... Qxa2 {[%clk 0:01:32.9]} 30. Rxf8+ {[%clk 0:01:33]}
30... Rxf8 {[%clk 0:01:32.6]} 31. Re1 {[%clk 0:01:24]} 31... Qxd5+ {[%clk
0:01:28.6]} 32. Kh2 {[%clk 0:01:16.7]} 32... Qa2 {[%clk 0:01:24.2]} 33. a5
{[%clk 0:00:54.5]} 33... Qxa5 {[%clk 0:01:04.5]} 34. Qc4+ {[%clk 0:00:53.1]}
34... Kh8 {[%clk 0:01:03.3]} 35. Ne4 {[%clk 0:00:47.5]} 35... b3 {[%clk
0:00:53.6]} 36. Re2 {[%clk 0:00:38.6]} 36... Qb6 {[%clk 0:00:37.3]} 37. Rb2
{[%clk 0:00:35]} 37... Bxe3 {[%clk 0:00:34.3]} 38. Rxb3 {[%clk 0:00:32.6]} 38...
Qd4 {[%clk 0:00:29.5]} 39. Qxd4 {[%clk 0:00:21.3]} 39... exd4 {[%clk 0:00:23.6]}
40. Nxd6 {[%clk 0:00:21]} 40... Rf2+ {[%clk 0:00:22.8]} 41. Kh3 {[%clk
0:00:21.3]} 41... h5 {[%clk 0:00:23.3]} 42. Rb5 {[%clk 0:00:14]} 42... g6 {[%clk
0:00:21.1]} 43. Rd5 {[%clk 0:00:14.2]} 43... Rd2 {[%clk 0:00:15.6]} 44. Ne4
{[%clk 0:00:14.3]} 44... Rd1 {[%clk 0:00:15.5]} 45. Rd7 {[%clk 0:00:12.5]} 45...
Rf1 {[%clk 0:00:08.2]} 46. Kg2 {[%clk 0:00:11.7]} 46... Rf8 {[%clk 0:00:07.1]}
47. Kh3 {[%clk 0:00:07.2]} 47... Kg8 {[%clk 0:00:06.8]} 48. Kg2 {[%clk 0:00:07]}
48... Rf7 {[%clk 0:00:05.5]} 49. Rd8+ {[%clk 0:00:07.5]} 49... Kg7 {[%clk
0:00:06.1]} 50. Nc5 {[%clk 0:00:07.5]} 50... Rf2+ {[%clk 0:00:04.3]} 51. Kh3
{[%clk 0:00:08]} 51... d3 {[%clk 0:00:03.4]} 52. Nxd3 {[%clk 0:00:08.2]} 52...
Rd2 {[%clk 0:00:03.8]} 53. Rd7+ {[%clk 0:00:09.2]} 53... Kh6 {[%clk 0:00:03.8]}
54. Ne5 {[%clk 0:00:08.7]} 54... Rxd7 {[%clk 0:00:03.7]} 55. Nxd7 {[%clk
0:00:10.6]} 55... g5 {[%clk 0:00:04.7]} 56. hxg5+ {[%clk 0:00:07.5]} 56... Kxg5
{[%clk 0:00:06.1]} 57. Ne5 {[%clk 0:00:07.8]} 57... Bc1 {[%clk 0:00:06]} 58.
Nf3+ {[%clk 0:00:08.4]} 58... Kg6 {[%clk 0:00:06.7]} 59. Ne5+ {[%clk 0:00:09.4]}
59... Kh6 {[%clk 0:00:07.4]} 60. Nd3 {[%clk 0:00:10.5]} 60... Bg5 {[%clk
0:00:07.2]} 61. Ne5 {[%clk 0:00:10.2]} 61... Bc1 {[%clk 0:00:04.1]} 62. Kg2
{[%clk 0:00:09]} 62... Ba3 {[%clk 0:00:04.2]} 63. Kf3 {[%clk 0:00:09.7]} 63...
Bc1 {[%clk 0:00:04.4]} 64. Nf7+ {[%clk 0:00:09]} 64... Kg6 {[%clk 0:00:04.6]}
65. Nd6 {[%clk 0:00:09.6]} 65... Kh6 {[%clk 0:00:05.5]} 66. Ke4 {[%clk
0:00:08.5]} 66... Kg6 {[%clk 0:00:06.6]} 67. Nf5 {[%clk 0:00:07.7]} 67... Kg5
{[%clk 0:00:06.7]} 68. Nh4 {[%clk 0:00:07.5]} 68... Kg4 {[%clk 0:00:07.3]} 69.
Nf5 {[%clk 0:00:08.5]} 69... Kg5 {[%clk 0:00:06.8]} 70. Ng7 {[%clk 0:00:06.5]}
70... Kg4 {[%clk 0:00:06.2]} 71. Nxh5 {[%clk 0:00:07]} 71... Kxh5 {[%clk
0:00:06.6]} 72. Kf3 {[%clk 0:00:07.7]} 72... Kg5 {[%clk 0:00:07.6]} 73. g4
{[%clk 0:00:09]} 73... Kg6 {[%clk 0:00:08.6]} 74. Ke2 {[%clk 0:00:10.1]} 74...
Kg5 {[%clk 0:00:08.9]} 75. Kd3 {[%clk 0:00:11.2]} 75... Kxg4 {[%clk 0:00:10.2]}
1/2-1/2

[Event "*** Titled Tuesday Blitz"]
[Site "Chess.com"]
[Date "2019.03.05"]
[Round "5"]
[White "DonPreuss"]
[Black "Sajkochess"]
[Result "0-1"]
[WhiteElo "2201"]
[BlackElo "2241"]
[TimeControl "180+2"]
[EndTime "14:15:34 PST"]
[Termination "Sajkochess won by resignation"]

1. d4 {[%clk 0:03:01.9]} 1... Nf6 {[%clk 0:03:00.4]} 2. Nc3 {[%clk 0:03:02.7]}
2... d5 {[%clk 0:02:59.8]} 3. e4 {[%clk 0:03:04.2]} 3... dxe4 {[%clk 0:02:59.9]}
4. f3 {[%clk 0:03:05.8]} 4... exf3 {[%clk 0:02:57.6]} 5. Nxf3 {[%clk 0:03:07.7]}
5... Bg4 {[%clk 0:02:55.6]} 6. h3 {[%clk 0:03:08.7]} 6... Bh5 {[%clk 0:02:54.4]}
7. g4 {[%clk 0:03:07.7]} 7... Bg6 {[%clk 0:02:55]} 8. Ne5 {[%clk 0:03:09.2]}
8... Nbd7 {[%clk 0:02:52]} 9. Qf3 {[%clk 0:03:10.6]} 9... c6 {[%clk 0:02:41.9]}
10. Nxg6 {[%clk 0:03:03.5]} 10... hxg6 {[%clk 0:02:35.9]} 11. g5 {[%clk
0:03:02.8]} 11... Nh5 {[%clk 0:02:28.4]} 12. Bc4 {[%clk 0:02:54.5]} 12... e6
{[%clk 0:02:28.9]} 13. Rf1 {[%clk 0:02:52.8]} 13... Qe7 {[%clk 0:02:24.4]} 14.
Bd2 {[%clk 0:02:12.9]} 14... Nb6 {[%clk 0:02:24.7]} 15. Bd3 {[%clk 0:02:09.2]}
15... Qc7 {[%clk 0:02:23.1]} 16. Ne4 {[%clk 0:02:07.6]} 16... Nd5 {[%clk
0:02:11]} 17. O-O-O {[%clk 0:02:05.8]} 17... Bb4 {[%clk 0:01:50.7]} 18. Bxb4
{[%clk 0:01:45]} 18... Nxb4 {[%clk 0:01:50.7]} 19. Qxf7+ {[%clk 0:01:44.3]}
19... Qxf7 {[%clk 0:01:48.7]} 20. Nd6+ {[%clk 0:01:45.5]} 20... Ke7 {[%clk
0:01:49.8]} 21. Nxf7 {[%clk 0:01:41.6]} 21... Nxd3+ {[%clk 0:01:50.9]} 22. Rxd3
{[%clk 0:01:39.5]} 22... Rhf8 {[%clk 0:01:52.3]} 23. Rdf3 {[%clk 0:01:40.5]}
23... Ng3 {[%clk 0:01:35.4]} 24. Rxg3 {[%clk 0:00:57.8]} 24... Rxf7 {[%clk
0:01:36.4]} 25. Rxf7+ {[%clk 0:00:58.6]} 25... Kxf7 {[%clk 0:01:38.3]} 26. Kd2
{[%clk 0:00:58.9]} 26... Rh8 {[%clk 0:01:39.2]} 27. Ke3 {[%clk 0:00:59.1]} 27...
Rh4 {[%clk 0:01:40]} 28. c4 {[%clk 0:00:55.4]} 28... c5 {[%clk 0:01:35.4]} 29.
Rf3+ {[%clk 0:00:28.2]} 29... Ke7 {[%clk 0:01:35.5]} 30. d5 {[%clk 0:00:21.4]}
30... Rxc4 {[%clk 0:01:31.9]} 31. dxe6 {[%clk 0:00:22.7]} 31... Rh4 {[%clk
0:01:21.5]} 32. Rf7+ {[%clk 0:00:22]} 32... Kxe6 {[%clk 0:01:22.3]} 33. Rxb7
{[%clk 0:00:22.3]} 33... Rxh3+ {[%clk 0:01:23]} 34. Ke4 {[%clk 0:00:22.8]} 34...
Rh4+ {[%clk 0:01:23.4]} 35. Kd3 {[%clk 0:00:24]} 35... a5 {[%clk 0:01:21.2]} 36.
Rxg7 {[%clk 0:00:18.5]} 36... Kf5 {[%clk 0:01:21.9]} 37. Rc7 {[%clk 0:00:18.9]}
37... c4+ {[%clk 0:01:19.6]} 38. Kc3 {[%clk 0:00:16.7]} 38... Kxg5 {[%clk
0:01:18.3]} 39. Rc5+ {[%clk 0:00:17.8]} 39... Kf4 {[%clk 0:01:16.7]} 40. Rxa5
{[%clk 0:00:19.7]} 40... g5 {[%clk 0:01:10.2]} 41. Rc5 {[%clk 0:00:19]} 41... g4
{[%clk 0:01:04.1]} 42. Rxc4+ {[%clk 0:00:19.4]} 42... Kf3 {[%clk 0:01:05.3]} 43.
Rd4 {[%clk 0:00:12.6]} 43... Rh5 {[%clk 0:01:01.1]} 44. b4 {[%clk 0:00:11.7]}
44... g3 {[%clk 0:00:59.1]} 45. a4 {[%clk 0:00:11.1]} 45... g2 {[%clk
0:00:55.9]} 46. Rd3+ {[%clk 0:00:12.3]} 46... Kf4 {[%clk 0:00:56.6]} 47. Rd4+
{[%clk 0:00:12.1]} 47... Kf3 {[%clk 0:00:55.5]} 48. Rd3+ {[%clk 0:00:13.4]}
48... Kf4 {[%clk 0:00:56.5]} 49. Rd4+ {[%clk 0:00:11.4]} 49... Kf5 {[%clk
0:00:57.3]} 50. Rd5+ {[%clk 0:00:11.3]} 50... Kg6 {[%clk 0:00:58.5]} 51. Rd6+
{[%clk 0:00:11.9]} 51... Kf7 {[%clk 0:00:58.4]} 52. Rd7+ {[%clk 0:00:12.5]}
52... Kf6 {[%clk 0:00:56.4]} 53. Rd6+ {[%clk 0:00:13.6]} 53... Kf5 {[%clk
0:00:39.3]} 54. Rd5+ {[%clk 0:00:14.9]} 54... Ke6 {[%clk 0:00:40.4]} 55. Rxh5
{[%clk 0:00:11.9]} 55... g1=Q {[%clk 0:00:41.6]} 56. Rc5 {[%clk 0:00:13.4]}
56... Qa1+ {[%clk 0:00:34.4]} 57. Kb3 {[%clk 0:00:13.8]} 57... Qd1+ {[%clk
0:00:30.3]} 58. Kc4 {[%clk 0:00:08.3]} 58... Qxa4 {[%clk 0:00:28.8]} 59. Kc3
{[%clk 0:00:09.7]} 59... Kd6 {[%clk 0:00:26.6]} 60. Kc4 {[%clk 0:00:09]} 60...
Qa2+ {[%clk 0:00:20.2]} 61. Kc3 {[%clk 0:00:06.3]} 61... Qa1+ {[%clk 0:00:19.9]}
62. Kc4 {[%clk 0:00:07.8]} 62... Qf1+ {[%clk 0:00:21]} 63. Kb3 {[%clk
0:00:08.5]} 63... Qf4 {[%clk 0:00:21.9]} 64. Kc3 {[%clk 0:00:08.9]} 64... Qe4
{[%clk 0:00:22.9]} 65. Kb3 {[%clk 0:00:10.1]} 65... Qd4 {[%clk 0:00:23.8]} 66.
Ka4 {[%clk 0:00:11]} 66... Qc3 {[%clk 0:00:24.7]} 67. Kb5 {[%clk 0:00:12.2]}
67... Qb3 {[%clk 0:00:24.8]} 68. Ka5 {[%clk 0:00:12.4]} 68... Qa2+ {[%clk
0:00:23.2]} 69. Kb5 {[%clk 0:00:13.6]} 69... Qa3 {[%clk 0:00:24.2]} 70. Kc4
{[%clk 0:00:14.6]} 70... Qa6+ {[%clk 0:00:21.5]} 71. Kc3 {[%clk 0:00:15.3]}
71... Qa2 {[%clk 0:00:21.4]} 72. Rc4 {[%clk 0:00:06.2]} 72... Kd5 {[%clk
0:00:20.4]} 73. Rd4+ {[%clk 0:00:04.2]} 73... Ke5 {[%clk 0:00:21]} 74. Rc4
{[%clk 0:00:05.6]} 74... Qa3+ {[%clk 0:00:21]} 75. Kc2 {[%clk 0:00:06.1]} 75...
Kd5 {[%clk 0:00:21.7]} 76. Rc5+ {[%clk 0:00:06.9]} 76... Kd4 {[%clk 0:00:21.7]}
77. Rh5 {[%clk 0:00:06.2]} 77... Qa2+ {[%clk 0:00:22.4]} 78. Kc1 {[%clk
0:00:07.1]} 78... Qc4+ {[%clk 0:00:19.3]} 79. Kb2 {[%clk 0:00:05.1]} 79... Qe2+
{[%clk 0:00:20.1]} 80. Kb3 {[%clk 0:00:05.4]} 80... Qxh5 {[%clk 0:00:22]} 0-1

[Event "*** Titled Tuesday Blitz"]
[Site "Chess.com"]
[Date "2019.03.05"]
[Round "5"]
[White "MathiasWomacka"]
[Black "Gubajdullin"]
[Result "1/2-1/2"]
[WhiteElo "2272"]
[BlackElo "2463"]
[TimeControl "180+2"]
[EndTime "14:15:36 PST"]
[Termination "Game drawn by stalemate"]

1. e4 {[%clk 0:03:01.9]} 1... e5 {[%clk 0:02:58.8]} 2. Nf3 {[%clk 0:03:02.1]}
2... Nf6 {[%clk 0:02:58.5]} 3. Nxe5 {[%clk 0:03:01.7]} 3... d6 {[%clk
0:02:59.6]} 4. Nf3 {[%clk 0:03:03.3]} 4... Nxe4 {[%clk 0:03:00.7]} 5. d4 {[%clk
0:03:04.9]} 5... d5 {[%clk 0:03:01.1]} 6. Bd3 {[%clk 0:03:06.3]} 6... Nc6 {[%clk
0:03:02]} 7. O-O {[%clk 0:03:07.4]} 7... Be7 {[%clk 0:03:02.9]} 8. c4 {[%clk
0:03:08.4]} 8... Nb4 {[%clk 0:03:03.8]} 9. Be2 {[%clk 0:03:09.5]} 9... O-O
{[%clk 0:03:04.3]} 10. Nc3 {[%clk 0:03:10.9]} 10... Bf5 {[%clk 0:03:04.3]} 11.
a3 {[%clk 0:03:09.9]} 11... Nxc3 {[%clk 0:03:04.7]} 12. bxc3 {[%clk 0:03:11.8]}
12... Nc6 {[%clk 0:03:05.5]} 13. Re1 {[%clk 0:03:11.8]} 13... Re8 {[%clk
0:03:05.6]} 14. Bf4 {[%clk 0:03:12.6]} 14... Na5 {[%clk 0:02:51.5]} 15. cxd5
{[%clk 0:03:02.4]} 15... Qxd5 {[%clk 0:02:52.2]} 16. Bxc7 {[%clk 0:02:54.4]}
16... Rac8 {[%clk 0:02:51.7]} 17. Bxa5 {[%clk 0:02:55.3]} 17... Qxa5 {[%clk
0:02:51.8]} 18. c4 {[%clk 0:02:56.6]} 18... Bf6 {[%clk 0:02:50.5]} 19. h3 {[%clk
0:02:31]} 19... Red8 {[%clk 0:02:46.8]} 20. Bf1 {[%clk 0:02:17.6]} 20... Qc3
{[%clk 0:02:12.7]} 21. Re3 {[%clk 0:02:05.8]} 21... Qb2 {[%clk 0:02:13.1]} 22.
Bd3 {[%clk 0:01:58.3]} 22... Bxd4 {[%clk 0:01:55.1]} 23. Nxd4 {[%clk 0:01:22.2]}
23... Qxd4 {[%clk 0:01:53.9]} 24. Be2 {[%clk 0:01:22.7]} 24... Qxd1+ {[%clk
0:01:12.2]} 25. Rxd1 {[%clk 0:01:23.3]} 25... Rxd1+ {[%clk 0:01:12.1]} 26. Bxd1
{[%clk 0:01:25.2]} 26... Be6 {[%clk 0:01:12.9]} 27. Bf3 {[%clk 0:01:15.6]} 27...
b6 {[%clk 0:00:52.8]} 28. Bd5 {[%clk 0:01:16]} 28... Bxd5 {[%clk 0:00:49.9]} 29.
cxd5 {[%clk 0:01:17.9]} 29... Kf8 {[%clk 0:00:39.7]} 30. d6 {[%clk 0:01:18.6]}
30... Rc1+ {[%clk 0:00:30]} 31. Kh2 {[%clk 0:01:18.9]} 31... Rd1 {[%clk
0:00:29.7]} 32. Re7 {[%clk 0:01:19.5]} 32... a5 {[%clk 0:00:29.8]} 33. Rb7
{[%clk 0:01:17]} 33... Rxd6 {[%clk 0:00:29.8]} 34. g4 {[%clk 0:01:14.7]} 34...
g5 {[%clk 0:00:27.2]} 35. a4 {[%clk 0:01:14]} 35... Kg7 {[%clk 0:00:26.2]} 36.
Kg3 {[%clk 0:01:13.1]} 36... Kg6 {[%clk 0:00:26.8]} 37. h4 {[%clk 0:01:12.3]}
37... Rd3+ {[%clk 0:00:23.9]} 38. f3 {[%clk 0:01:13.5]} 38... gxh4+ {[%clk
0:00:18.3]} 39. Kxh4 {[%clk 0:01:15.4]} 39... Rd6 {[%clk 0:00:18.2]} 40. f4
{[%clk 0:01:12.8]} 40... f5 {[%clk 0:00:14.9]} 41. g5 {[%clk 0:01:05.6]} 41...
h6 {[%clk 0:00:15.5]} 42. gxh6 {[%clk 0:01:05.8]} 42... Kxh6 {[%clk 0:00:16.3]}
43. Rb8 {[%clk 0:01:05.8]} 43... Kg6 {[%clk 0:00:16.9]} 44. Rb7 {[%clk 0:01:07]}
44... Kf6 {[%clk 0:00:16.9]} 45. Rb8 {[%clk 0:01:05.1]} 45... Rc6 {[%clk
0:00:13.7]} 46. Rb7 {[%clk 0:01:05.3]} 46... Kg6 {[%clk 0:00:14.3]} 47. Rb8
{[%clk 0:01:06.4]} 47... Kf6 {[%clk 0:00:14.6]} 48. Rb7 {[%clk 0:01:07.2]} 48...
Kg6 {[%clk 0:00:12.3]} 49. Rb8 {[%clk 0:01:08.2]} 49... Kh6 {[%clk 0:00:13.1]}
50. Rb7 {[%clk 0:01:07.6]} 50... Rg6 {[%clk 0:00:13.5]} 51. Kh3 {[%clk
0:01:02.2]} 51... Rg4 {[%clk 0:00:07.2]} 52. Rxb6+ {[%clk 0:01:02.3]} 52... Kh5
{[%clk 0:00:07.9]} 53. Rb5 {[%clk 0:01:03.1]} 53... Rxf4 {[%clk 0:00:08.5]} 54.
Rxa5 {[%clk 0:01:04.1]} 54... Rf3+ {[%clk 0:00:08.9]} 55. Kg2 {[%clk 0:01:04.2]}
55... Kg4 {[%clk 0:00:09.1]} 56. Rb5 {[%clk 0:01:01.2]} 56... Ra3 {[%clk
0:00:09]} 57. Rb8 {[%clk 0:00:48.6]} 57... Ra2+ {[%clk 0:00:08.4]} 58. Kf1
{[%clk 0:00:48.1]} 58... f4 {[%clk 0:00:08.9]} 59. Rb3 {[%clk 0:00:46.8]} 59...
Rxa4 {[%clk 0:00:07.7]} 60. Kf2 {[%clk 0:00:46.5]} 60... Ra2+ {[%clk 0:00:08.3]}
61. Kf1 {[%clk 0:00:47.3]} 61... Ra1+ {[%clk 0:00:08.6]} 62. Kf2 {[%clk
0:00:48.3]} 62... Rc1 {[%clk 0:00:09.5]} 63. Ra3 {[%clk 0:00:46.4]} 63... Rc2+
{[%clk 0:00:10.2]} 64. Kf1 {[%clk 0:00:46.4]} 64... Rc5 {[%clk 0:00:10.5]} 65.
Kf2 {[%clk 0:00:46.5]} 65... Rh5 {[%clk 0:00:11.2]} 66. Kf1 {[%clk 0:00:45.2]}
66... Rh2 {[%clk 0:00:11.2]} 67. Kg1 {[%clk 0:00:44]} 67... Re2 {[%clk
0:00:11.5]} 68. Kf1 {[%clk 0:00:44.7]} 68... Re3 {[%clk 0:00:12.5]} 69. Rxe3
{[%clk 0:00:44.7]} 69... fxe3 {[%clk 0:00:13.4]} 70. Ke2 {[%clk 0:00:45.8]}
70... Kf4 {[%clk 0:00:14.4]} 71. Ke1 {[%clk 0:00:46.8]} 71... Ke4 {[%clk
0:00:13.7]} 72. Ke2 {[%clk 0:00:46.6]} 72... Kd4 {[%clk 0:00:14.6]} 73. Ke1
{[%clk 0:00:48]} 73... Kc3 {[%clk 0:00:15.4]} 74. Ke2 {[%clk 0:00:48.6]} 74...
Kd4 {[%clk 0:00:16.4]} 75. Ke1 {[%clk 0:00:49.7]} 75... Ke4 {[%clk 0:00:17.5]}
76. Ke2 {[%clk 0:00:50.7]} 76... Kf4 {[%clk 0:00:18.3]} 77. Ke1 {[%clk
0:00:51.7]} 77... Kg3 {[%clk 0:00:19.1]} 78. Ke2 {[%clk 0:00:52.6]} 78... Kf4
{[%clk 0:00:20]} 79. Ke1 {[%clk 0:00:53.9]} 79... Kf3 {[%clk 0:00:21.1]} 80. Kf1
{[%clk 0:00:54.9]} 80... Ke4 {[%clk 0:00:22.2]} 81. Ke2 {[%clk 0:00:55.8]} 81...
Kd4 {[%clk 0:00:23.2]} 82. Ke1 {[%clk 0:00:56.8]} 82... Kd3 {[%clk 0:00:24.2]}
83. Kd1 {[%clk 0:00:57.4]} 83... Kc3 {[%clk 0:00:25]} 84. Ke2 {[%clk 0:00:58.2]}
84... Kd4 {[%clk 0:00:26]} 85. Ke1 {[%clk 0:00:59.6]} 85... Kd3 {[%clk
0:00:27.1]} 86. Kd1 {[%clk 0:01:00.5]} 86... Ke4 {[%clk 0:00:28.1]} 87. Ke2
{[%clk 0:01:01.5]} 87... Kf4 {[%clk 0:00:29]} 88. Ke1 {[%clk 0:01:02.4]} 88...
Kf3 {[%clk 0:00:29.5]} 89. Kf1 {[%clk 0:01:03.2]} 89... e2+ {[%clk 0:00:30.5]}
90. Ke1 {[%clk 0:01:04]} 90... Ke3 {[%clk 0:00:31.5]} 1/2-1/2

[Event "*** Titled Tuesday Blitz"]
[Site "Chess.com"]
[Date "2019.03.05"]
[Round "5"]
[White "chesstatour"]
[Black "kinga2008"]
[Result "1/2-1/2"]
[WhiteElo "2007"]
[BlackElo "1853"]
[TimeControl "180+2"]
[EndTime "14:15:51 PST"]
[Termination "Game drawn by repetition"]

1. c4 {[%clk 0:03:01.9]} 1... c5 {[%clk 0:03:00.3]} 2. Nc3 {[%clk 0:03:00.9]}
2... Nf6 {[%clk 0:03:01.1]} 3. Nf3 {[%clk 0:03:02.1]} 3... g6 {[%clk 0:03:01.9]}
4. d4 {[%clk 0:03:03.3]} 4... cxd4 {[%clk 0:03:01.9]} 5. Nxd4 {[%clk 0:03:05.2]}
5... Bg7 {[%clk 0:03:02.1]} 6. e4 {[%clk 0:03:05.6]} 6... Nc6 {[%clk 0:03:02.7]}
7. Be3 {[%clk 0:03:04.9]} 7... Qa5 {[%clk 0:03:03]} 8. Qd2 {[%clk 0:03:02.7]}
8... O-O {[%clk 0:02:59.9]} 9. Be2 {[%clk 0:03:02.8]} 9... e6 {[%clk 0:02:59.8]}
10. O-O {[%clk 0:03:02]} 10... a6 {[%clk 0:02:57.8]} 11. Rfd1 {[%clk 0:02:51.3]}
11... Nxd4 {[%clk 0:02:57.5]} 12. Bxd4 {[%clk 0:02:51.7]} 12... Ne8 {[%clk
0:02:34.2]} 13. Nd5 {[%clk 0:02:04.8]} 13... Qxd2 {[%clk 0:02:28.8]} 14. Ne7+
{[%clk 0:02:01.3]} 14... Kh8 {[%clk 0:02:28]} 15. Bxg7+ {[%clk 0:01:46.6]} 15...
Kxg7 {[%clk 0:02:26]} 16. Rxd2 {[%clk 0:01:42.8]} 16... d6 {[%clk 0:02:22.4]}
17. Nxc8 {[%clk 0:00:30]} 17... Rxc8 {[%clk 0:02:20.7]} 18. b3 {[%clk
0:00:29.1]} 18... Rc6 {[%clk 0:02:17.7]} 19. Rad1 {[%clk 0:00:30.1]} 19... Nf6
{[%clk 0:02:11.3]} 20. Rxd6 {[%clk 0:00:22.2]} 20... Rxd6 {[%clk 0:02:11.6]} 21.
Rxd6 {[%clk 0:00:23.6]} 21... Nxe4 {[%clk 0:02:12.5]} 22. Rd7 {[%clk 0:00:23.7]}
22... Nc3 {[%clk 0:02:12.2]} 23. Bf3 {[%clk 0:00:22.5]} 23... Nxa2 {[%clk
0:02:08.8]} 24. Rxb7 {[%clk 0:00:20.7]} 24... Rd8 {[%clk 0:02:00]} 25. h3 {[%clk
0:00:17.6]} 25... Nc1 {[%clk 0:01:55.9]} 26. c5 {[%clk 0:00:13.4]} 26... Nd3
{[%clk 0:01:46.9]} 27. c6 {[%clk 0:00:13.2]} 27... Ne5 {[%clk 0:01:46.9]} 28. c7
{[%clk 0:00:11.3]} 28... Nxf3+ {[%clk 0:01:43.7]} 29. gxf3 {[%clk 0:00:12.2]}
29... Rd1+ {[%clk 0:01:31.6]} 30. Kg2 {[%clk 0:00:12.7]} 30... Rc1 {[%clk
0:01:32.3]} 31. Ra7 {[%clk 0:00:13.1]} 31... Kf6 {[%clk 0:01:27.7]} 32. h4
{[%clk 0:00:12.8]} 32... Rc6 {[%clk 0:01:20.6]} 33. Kg3 {[%clk 0:00:12.1]} 33...
h6 {[%clk 0:01:05.7]} 34. b4 {[%clk 0:00:12.4]} 34... Ke5 {[%clk 0:00:56.2]} 35.
f4+ {[%clk 0:00:10.8]} 35... Kd6 {[%clk 0:00:49.3]} 36. c8=Q {[%clk 0:00:10]}
36... Rxc8 {[%clk 0:00:46.8]} 37. Rxa6+ {[%clk 0:00:10.4]} 37... Rc6 {[%clk
0:00:44.7]} 38. Ra7 {[%clk 0:00:09.2]} 38... Rc3+ {[%clk 0:00:37.7]} 39. f3
{[%clk 0:00:09.8]} 39... Rc7 {[%clk 0:00:36.8]} 40. Ra6+ {[%clk 0:00:09.2]}
40... Kd5 {[%clk 0:00:35.3]} 41. Rb6 {[%clk 0:00:08.3]} 41... Kc4 {[%clk
0:00:27.8]} 42. Rb8 {[%clk 0:00:08.7]} 42... h5 {[%clk 0:00:14.1]} 43. Rb6
{[%clk 0:00:07.2]} 43... Kd5 {[%clk 0:00:11.6]} 44. Rb8 {[%clk 0:00:07.8]} 44...
Kc6 {[%clk 0:00:11.4]} 45. b5+ {[%clk 0:00:07.5]} 45... Kd7 {[%clk 0:00:11.4]}
46. Ra8 {[%clk 0:00:05.1]} 46... Rb7 {[%clk 0:00:11.8]} 47. Ra5 {[%clk
0:00:05.3]} 47... Kc7 {[%clk 0:00:09.7]} 48. f5 {[%clk 0:00:06.1]} 48... Kb6
{[%clk 0:00:05.8]} 49. Ra1 {[%clk 0:00:05]} 49... Kxb5 {[%clk 0:00:05.9]} 50.
fxe6 {[%clk 0:00:06.1]} 50... fxe6 {[%clk 0:00:06.2]} 51. Kf4 {[%clk 0:00:07.3]}
51... Kc6 {[%clk 0:00:06.1]} 52. Kg5 {[%clk 0:00:07.4]} 52... Rf7 {[%clk
0:00:04.3]} 53. Kxg6 {[%clk 0:00:03.4]} 53... Rxf3 {[%clk 0:00:05.7]} 54. Kxh5
{[%clk 0:00:04.1]} 54... Rg3 {[%clk 0:00:06.9]} 55. Rd1 {[%clk 0:00:03.6]} 55...
e5 {[%clk 0:00:07]} 56. Rd8 {[%clk 0:00:03.6]} 56... e4 {[%clk 0:00:07]} 57. Kh6
{[%clk 0:00:05.1]} 57... e3 {[%clk 0:00:07.7]} 58. Re8 {[%clk 0:00:04.2]} 58...
Kd5 {[%clk 0:00:07.9]} 59. h5 {[%clk 0:00:05.3]} 59... Kd4 {[%clk 0:00:08.5]}
60. Kh7 {[%clk 0:00:05.2]} 60... Kd3 {[%clk 0:00:09.5]} 61. h6 {[%clk
0:00:04.9]} 61... e2 {[%clk 0:00:10.6]} 62. Kh8 {[%clk 0:00:03.1]} 62... Re3
{[%clk 0:00:09.3]} 63. Rxe3+ {[%clk 0:00:02.5]} 63... Kxe3 {[%clk 0:00:10.3]}
64. h7 {[%clk 0:00:04.2]} 64... e1=Q {[%clk 0:00:10.2]} 65. Kg8 {[%clk
0:00:05.3]} 65... Qg3+ {[%clk 0:00:10.8]} 66. Kf8 {[%clk 0:00:05.6]} 66... Qb8+
{[%clk 0:00:08.4]} 67. Kg7 {[%clk 0:00:06.4]} 67... Qe5+ {[%clk 0:00:08.7]} 68.
Kg8 {[%clk 0:00:07.3]} 68... Qe6+ {[%clk 0:00:09.6]} 69. Kf8 {[%clk 0:00:08]}
69... Qf6+ {[%clk 0:00:08]} 70. Kg8 {[%clk 0:00:09.3]} 70... Qg6+ {[%clk
0:00:08]} 71. Kh8 {[%clk 0:00:10.6]} 71... Qf5 {[%clk 0:00:07.7]} 72. Kg8 {[%clk
0:00:11.5]} 72... Qc8+ {[%clk 0:00:05.5]} 73. Kg7 {[%clk 0:00:12.4]} 73... Qc7+
{[%clk 0:00:03.4]} 74. Kg8 {[%clk 0:00:11.8]} 74... Qc4+ {[%clk 0:00:03.1]} 75.
Kg7 {[%clk 0:00:12.5]} 75... Qd4+ {[%clk 0:00:04]} 76. Kg8 {[%clk 0:00:13]}
76... Qd5+ {[%clk 0:00:04.8]} 77. Kg7 {[%clk 0:00:13.8]} 77... Qe5+ {[%clk
0:00:05.7]} 78. Kg8 {[%clk 0:00:14.8]} 78... Qe6+ {[%clk 0:00:06.6]} 79. Kg7
{[%clk 0:00:15.8]} 79... Qe7+ {[%clk 0:00:07.5]} 80. Kg8 {[%clk 0:00:16.6]}
80... Qe8+ {[%clk 0:00:02.7]} 81. Kg7 {[%clk 0:00:18.1]} 81... Qe5+ {[%clk
0:00:02.1]} 82. Kg8 {[%clk 0:00:19.4]} 82... Qg5+ {[%clk 0:00:02.9]} 83. Kf8
{[%clk 0:00:19.8]} 83... Qh6+ {[%clk 0:00:03.4]} 84. Kg8 {[%clk 0:00:21.3]}
84... Qg6+ {[%clk 0:00:04.5]} 85. Kh8 {[%clk 0:00:22.7]} 85... Qf5 {[%clk
0:00:05]} 86. Kg8 {[%clk 0:00:22.9]} 86... Qe6+ {[%clk 0:00:04.9]} 1/2-1/2